bitfinex/quotes_ETHUSD_20251017
["timestamp","ask_amount","ask_price","bid_price","bid_amount"]
[1760671605812,27.3000541,3937.2,3937.1,0.002]
[1760671606018,26.8638761,3937.2,3937.1,0.002]
[1760671606838,25.4084351,3937.2,3937.1,0.002]
[1760671607734,36.7311141,3937.2,3937.1,0.002]
[1760671607933,32.9627231,3937.2,3937.1,0.002]
[1760671608297,33.36125821,3937.2,3937.1,0.002]
[1760671608711,38.27616121,3937.2,3937.1,0.002]
[1760671609906,8.27616121,3937.2,3937.1,0.002]
[1760671610101,20.85380821,3937.2,3937.1,0.002]
[1760671610440,19.27798021,3937.2,3937.1,0.002]
[1760671610801,19.32798021,3937.2,3937.1,0.002]
[1760671611006,34.95781521,3937.2,3937.1,0.002]
[1760671611205,32.41793916,3937.2,3937.1,0.002]
[1760671611408,12.64389916,3937.2,3937.1,0.002]
[1760671611820,14.7852401,3937.2,3937.1,0.002]
[1760671612020,34.4961171,3937.2,3937.1,0.002]
[1760671612216,33.2138241,3937.2,3937.1,0.002]
[1760671612416,29.8584271,3937.2,3937.1,0.002]
[1760671612621,25.32862605,3937.2,3937.1,0.002]
[1760671612842,10.65423605,3937.2,3937.1,0.002]
[1760671613033,11.80107805,3937.2,3937.1,0.002]
[1760671614111,27.89602805,3937.2,3937.1,0.002]
[1760671614312,18.63804205,3937.2,3937.1,0.002]
[1760671615143,21.24914605,3937.2,3937.1,0.002]
[1760671615654,12.28244905,3937.2,3937.1,0.002]
[1760671615815,12.68095862,3937.2,3937.1,0.002]
[1760671616027,20.26189062,3937.2,3937.1,0.002]
[1760671616222,14.12957657,3937.2,3937.1,0.002]
[1760671616423,8.51763257,3937.2,3937.1,0.53]
[1760671616638,8.51763257,3937.2,3937.1,0.002]
[1760671617044,22.14458957,3937.2,3937.1,0.002]
[1760671617224,14.37284157,3937.2,3937.1,0.002]
[1760671617551,16.06430261,3937.2,3937.1,0.002]
[1760671617958,16.50600261,3937.2,3937.1,0.002]
[1760671618275,28.79302504,3937.2,3937.1,0.002]
[1760671618429,27.68824204,3937.2,3937.1,0.002]
[1760671618632,28.08674548,3937.2,3937.1,0.002]
[1760671618832,27.77523748,3937.2,3937.1,0.002]
[1760671619068,15.76687448,3937.2,3937.1,0.002]
[1760671619255,16.85284348,3937.2,3937.1,0.002]
[1760671619857,15.09071248,3937.2,3937.1,0.002]
[1760671620154,27.46550248,3937.2,3937.1,0.002]
[1760671620459,14.88876648,3937.2,3937.1,0.002]
[1760671621222,28.25000848,3937.2,3937.1,0.002]
[1760671621940,21.46238548,3937.2,3937.1,0.002]
[1760671622166,29.95318148,3937.2,3937.1,0.002]
[1760671622332,20.11048548,3937.2,3937.1,0.002]
[1760671622530,19.68803948,3937.2,3937.1,0.002]
[1760671622735,18.40512848,3937.2,3937.1,0.002]
[1760671623270,24.60341848,3937.2,3937.1,0.002]
[1760671623730,20.42939548,3937.2,3937.1,0.002]
[1760671624255,17.32950444,3937.2,3937.1,0.002]
[1760671624473,8.37827044,3937.2,3937.1,0.5371]
[1760671624638,8.37827044,3937.2,3937.1,0.0838]
[1760671625331,5.46219044,3937.2,3937.1,0.5371]
[1760671626536,5.063687,3937.2,3937.1,0.5371]
[1760671627469,2.568,3937.2,3937.1,3.07704056]
[1760671627671,2.568,3937.2,3937.1,4.27275703]
[1760671628038,2.568,3937.2,3937.1,1.73281647]
[1760671628238,2.568,3937.2,3937.1,1.1707]
[1760671628940,2.568,3937.2,3937.1,0.0838]
[1760671631440,2.568,3937.2,3937.1,0.002]
[1760671634869,2.568,3937.2,3937.1,2.54194056]
[1760671635937,2.568,3937.2,3937.1,0.002]
[1760671637271,8.36351,3937.2,3937.1,0.002]
[1760671637445,2.568,3937.2,3937.1,0.002]
[1760671638453,2.568,3937.2,3937.1,0.0838]
[1760671639057,2.568,3937.2,3937.1,0.002]
[1760671639281,8.779369,3937.2,3937.1,0.002]
[1760671639582,19.87291643,3937.2,3937.1,0.002]
[1760671639881,18.77810743,3937.2,3937.1,0.002]
[1760671640045,16.54483743,3937.2,3937.1,0.002]
[1760671640474,26.70054243,3937.2,3937.1,0.002]
[1760671640680,10.77723743,3937.2,3937.1,0.002]
[1760671640849,8.29724343,3937.2,3937.1,0.002]
[1760671641049,2.568,3937.2,3937.1,0.002]
[1760671641942,2.568,3937.2,3937.1,2.54194056]
[1760671642479,2.568,3937.2,3937.1,2.62374056]
[1760671642676,2.568,3937.2,3937.1,3.05344056]
[1760671643779,2.568,3937.2,3937.1,3.68704056]
[1760671643976,2.568,3937.2,3937.1,4.78819958]
[1760671645954,0.001,3937.2,3937.1,4.78819958]
[1760671646159,0.001,3937.2,3937.1,4.91459958]
[1760671648584,0.001,3937.2,3937.1,4.93999898]
[1760671648764,0.001,3937.2,3937.1,4.91459958]
[1760671653581,0.001,3937.2,3937.1,11.32208619]
[1760671653790,0.001,3937.2,3937.1,11.29668679]
[1760671655219,0.001,3937.2,3937.1,11.39851213]
[1760671660737,0.001,3937.2,3937.1,13.96451213]
[1760671663447,0.001,3937.2,3937.1,8.69709958]
[1760671663612,0.001,3937.2,3937.1,9.20859958]
[1760671665195,0.001,3937.2,3937.1,3.64309958]
[1760671665196,0.4707,3937.2,3937.1,3.64309958]
[1760671665513,0.4707,3937.2,3937.1,3.17554056]
[1760671672416,0.4707,3937.2,3937.1,0.002]
[1760671673310,14.408155,3937.2,3937.1,0.002]
[1760671673508,10.753344,3937.2,3937.1,0.002]
[1760671673746,12.12532087,3937.2,3937.1,0.002]
[1760671674111,6.85874687,3937.2,3937.1,0.002]
[1760671674312,8.32792587,3937.2,3937.1,0.002]
[1760671674847,6.85874687,3937.2,3937.1,0.002]
[1760671675322,18.54169287,3937.2,3937.1,0.002]
[1760671675643,6.88928387,3937.2,3937.1,0.002]
[1760671676247,19.59084887,3937.2,3937.1,0.002]
[1760671676438,7.68970087,3937.2,3937.1,0.002]
[1760671677363,19.45597087,3937.2,3937.1,0.002]
[1760671677651,7.48990987,3937.2,3937.1,0.002]
[1760671677852,6.19155987,3937.2,3937.1,0.002]
[1760671678349,1.84267687,3937.2,3937.1,0.002]
[1760671678557,17.16154187,3937.2,3937.1,0.002]
[1760671678928,9.31492487,3937.2,3937.1,0.002]
[1760671679151,9.31492487,3937.2,3937.1,7.19602777]
[1760671679152,2.567,3937.2,3937.1,7.19602777]
[1760671680156,3.0317,3937.2,3937.1,0.002]
[1760671680653,7.204599,3937.2,3937.1,0.002]
[1760671681762,2.567,3937.2,3937.1,2.54194056]
[1760671682119,2.567,3937.2,3937.1,7.82962777]
[1760671682455,2.567,3937.2,3937.1,7.91142777]
[1760671682833,2.567,3937.2,3937.1,7.82962777]
[1760671684160,2.567,3937.2,3937.1,0.6356]
[1760671684356,3.2886,3937.2,3937.1,0.6356]
[1760671684852,3.0317,3937.2,3937.1,3.17554056]
[1760671685734,0.001,3937.2,3937.1,7.82962777]
[1760671686054,2.567,3937.2,3937.1,7.82962777]
[1760671687053,2.567,3937.2,3937.1,3.17554056]
[1760671691077,2.567,3937.2,3937.1,4.74870464]
[1760671691286,0.001,3937.2,3937.1,4.74870464]
[1760671691490,0.001,3937.2,3937.1,4.90050404]
[1760671691690,0.001,3937.2,3937.1,6.60310464]
[1760671692205,0.001,3937.2,3937.1,6.14420464]
[1760671692353,0.001,3937.2,3937.1,10.79829185]
[1760671692555,0.001,3937.2,3937.1,1.74986408]
[1760671692754,0.001,3937.2,3937.1,0.6356]
[1760671693186,0.001,3937.2,3937.1,3.17554056]
[1760671696800,0.001,3937.2,3937.1,14.21171498]
[1760671696983,0.001,3937.2,3937.1,14.87881498]
[1760671697317,0.001,3937.2,3937.1,15.6425984]
[1760671697475,0.001,3937.2,3937.1,10.98851119]
[1760671697673,0.001,3937.2,3937.1,16.99585102]
[1760671703518,0.001,3937.2,3937.1,13.26804076]
[1760671703734,0.001,3937.2,3937.1,7.0205766]
[1760671703930,0.001,3937.2,3937.1,5.03372398]
[1760671703931,0.4628,3937.2,3937.1,5.03372398]
[1760671704099,0.4628,3937.2,3937.1,4.26994056]
[1760671704424,0.001,3937.2,3937.1,10.58575366]
[1760671705321,0.4628,3937.2,3937.1,5.0053895]
[1760671705729,0.4628,3937.2,3937.1,4.90354056]
[1760671706012,0.4628,3937.2,3937.1,3.17554056]
[1760671706212,0.4628,3937.2,3937.1,2.54194056]
[1760671706381,0.4628,3937.2,3937.1,3.17554056]
[1760671706584,0.4628,3937.2,3937.1,0.6356]
[1760671706992,0.4628,3937.2,3937.1,3.17554056]
[1760671708690,0.4628,3937.2,3937.1,0.6356]
[1760671708889,0.4628,3937.2,3937.1,3.17554056]
[1760671710324,0.4628,3937.2,3937.1,0.6356]
[1760671712518,0.4628,3937.2,3937.1,3.17554056]
[1760671712833,0.4628,3937.2,3937.1,0.6356]
[1760671714489,0.4628,3937.2,3937.1,0.002]
[1760671715436,12.605761,3937.2,3937.1,0.002]
[1760671715605,11.009993,3937.2,3937.1,0.002]
[1760671716214,12.1111923,3937.2,3937.1,0.002]
[1760671716443,7.1047283,3937.2,3937.1,0.002]
[1760671717325,11.4208073,3937.2,3937.1,0.002]
[1760671717541,9.1034043,3937.2,3937.1,0.002]
[1760671718044,5.4855913,3937.2,3937.1,0.002]
[1760671718243,4.384392,3937.2,3937.1,0.002]
[1760671718540,5.269384,3937.2,3937.1,0.002]
[1760671718746,0.4628,3937.2,3937.1,2.54194056]
[1760671719044,0.001,3937.2,3937.1,2.54194056]
[1760671719550,0.4628,3937.2,3937.1,2.54194056]
[1760671720351,0.001,3937.2,3937.1,2.54194056]
[1760671721823,2.566,3937.2,3937.1,2.54194056]
[1760671724018,3.0278,3937.2,3937.1,0.002]
[1760671726963,2.566,3937.2,3937.1,0.002]
[1760671727749,3.0278,3937.2,3937.1,0.002]
[1760671727949,3.33078,3937.2,3937.1,0.002]
[1760671728133,13.749951,3937.2,3937.1,0.002]
[1760671728940,11.619234,3937.2,3937.1,0.002]
[1760671729121,10.139686,3937.2,3937.1,0.002]
[1760671729972,9.150691,3937.2,3937.1,0.002]
[1760671731066,9.296559,3937.2,3937.1,0.002]
[1760671732123,15.844784,3937.2,3937.1,0.002]
[1760671732954,10.017757,3937.2,3937.1,0.002]
[1760671733153,11.943122,3937.2,3937.1,0.002]
[1760671734255,15.370626,3937.2,3937.1,0.002]
[1760671735126,16.002852,3937.2,3937.1,0.002]
[1760671735460,15.371226,3937.2,3937.1,0.002]
[1760671736050,13.205272,3937.2,3937.1,0.002]
[1760671736259,14.207763,3937.2,3937.1,0.002]
[1760671736448,13.239898,3937.2,3937.1,0.002]
[1760671737234,13.425818,3937.2,3937.1,0.002]
[1760671737754,11.969897,3937.2,3937.1,0.002]
[1760671737966,5.869821,3937.2,3937.1,0.002]
[1760671738137,3.308058,3937.2,3937.1,0.002]
[1760671738461,5.599646,3937.2,3937.1,0.002]
[1760671738762,4.990816,3937.2,3937.1,0.002]
[1760671739162,2.86898,3937.2,3937.1,0.002]
[1760671739349,2.566,3937.2,3937.1,0.002]
[1760671740259,2.566,3937.2,3937.1,0.53]
[1760671740567,0.001,3937.2,3937.1,3.28273996]
[1760671740732,2.566,3937.2,3937.1,3.70354056]
[1760671740927,2.566,3937.2,3937.1,4.32829751]
[1760671741128,2.566,3937.2,3937.1,3.17554056]
[1760671741337,2.566,3937.2,3937.1,3.70354056]
[1760671747077,2.566,3937.2,3937.1,3.25734056]
[1760671748555,2.566,3937.2,3937.1,3.17554056]
[1760671749247,0.001,3937.2,3937.1,3.17554056]
[1760671749445,0.001,3937.2,3937.1,0.6356]
[1760671749446,2.565,3937.2,3937.1,0.6356]
[1760671749682,2.9997,3937.2,3937.1,0.6356]
[1760671751380,2.9997,3937.2,3937.1,0.002]
[1760671752899,2.565,3937.2,3937.1,0.002]
[1760671753309,2.565,3937.2,3937.1,2.54194056]
[1760671753490,0.001,3937.2,3937.1,4.32012779]
[1760671753665,2.565,3937.2,3937.1,4.32012779]
[1760671753865,2.565,3937.2,3937.1,3.25734056]
[1760671754173,2.565,3937.2,3937.1,3.70354056]
[1760671755678,0.001,3937.2,3937.1,3.70354056]
[1760671756008,0.001,3937.2,3937.1,9.43570412]
[1760671756166,0.001,3937.2,3937.1,9.41030472]
[1760671756365,0.001,3937.2,3937.1,10.26138453]
[1760671756880,0.001,3937.2,3937.1,10.70758453]
[1760671758366,0.001,3937.2,3937.1,12.43558453]
[1760671759505,0.001,3937.2,3937.1,6.85522037]
[1760671765406,0.001,3937.2,3937.1,11.50679518]
[1760671769236,0.001,3937.2,3937.1,16.15836999]
[1760671769433,0.001,3937.2,3937.1,11.50679518]
[1760671769621,0.001,3937.2,3937.1,11.06059518]
[1760671770338,0.001,3937.2,3937.1,11.48899518]
[1760671772135,0.001,3937.2,3937.1,10.97879518]
[1760671778314,0.001,3937.2,3937.1,3.78727981]
[1760671778515,0.001,3937.2,3937.1,0.762]
[1760671778516,0.468,3937.2,3937.1,0.762]
[1760671778846,0.468,3937.2,3937.1,2.66834056]
[1760671779026,0.468,3937.2,3937.1,3.30194056]
[1760671779413,0.468,3937.2,3937.1,2.66834056]
[1760671779614,0.468,3937.2,3937.1,3.30194056]
[1760671780348,0.468,3937.2,3937.1,3.17554056]
[1760671782152,0.468,3937.2,3937.1,0.6356]
[1760671782840,0.468,3937.2,3937.1,3.17554056]
[1760671785655,0.468,3937.2,3937.1,0.6356]
[1760671786054,0.001,3937.2,3937.1,7.82711537]
[1760671786260,0.001,3937.2,3937.1,8.95867192]
[1760671786554,0.001,3937.2,3937.1,9.08507192]
[1760671787052,0.001,3937.2,3937.1,9.00327192]
[1760671787249,0.001,3937.2,3937.1,7.82711537]
[1760671795036,0.4583,3937.2,3937.1,7.82711537]
[1760671796038,0.001,3937.2,3937.1,7.82711537]
[1760671797958,0.4583,3937.2,3937.1,7.82711537]
[1760671799731,0.4583,3937.2,3937.1,5.28717481]
[1760671799933,0.4583,3937.2,3937.1,7.82711537]
[1760671800941,0.001,3937.2,3937.1,7.82711537]
[1760671801273,0.4444,3937.2,3937.1,0.6356]
[1760671801564,0.4444,3937.2,3937.1,0.002]
[1760671801565,17.910294,3937.2,3937.1,0.002]
[1760671801747,14.2862654,3937.2,3937.1,0.002]
[1760671802068,16.5175134,3937.2,3937.1,0.002]
[1760671802654,4.7986294,3937.2,3937.1,0.002]
[1760671802969,15.7847584,3937.2,3937.1,0.002]
[1760671803172,4.7986294,3937.2,3937.1,0.002]
[1760671803336,19.3401624,3937.2,3937.1,0.002]
[1760671803536,26.7852474,3937.2,3937.1,0.002]
[1760671803754,25.1328854,3937.2,3937.1,0.002]
[1760671803959,26.23280845,3937.2,3937.1,0.002]
[1760671804192,27.96080845,3937.2,3937.1,0.002]
[1760671804408,28.01080845,3937.2,3937.1,0.002]
[1760671804691,39.11650545,3937.2,3937.1,0.002]
[1760671807514,21.04159145,3937.2,3937.1,0.002]
[1760671807694,10.9545884,3937.2,3937.1,0.002]
[1760671807882,9.9953344,3937.2,3937.1,0.002]
[1760671808197,9.4549324,3937.2,3937.1,0.002]
[1760671808375,7.663703,3937.2,3937.1,0.002]
[1760671808573,12.288652,3937.2,3937.1,0.002]
[1760671808891,14.44570205,3937.2,3937.1,0.002]
[1760671809796,25.96050105,3937.2,3937.1,0.002]
[1760671810001,16.403161,3937.2,3937.1,0.002]
[1760671810196,18.17742431,3937.2,3937.1,0.002]
[1760671810690,19.36807131,3937.2,3937.1,0.002]
[1760671811167,21.90794736,3937.2,3937.1,0.002]
[1760671811877,34.61645836,3937.2,3937.1,0.002]
[1760671812099,28.20899336,3937.2,3937.1,0.002]
[1760671812705,19.63458231,3937.2,3937.1,0.002]
[1760671812897,25.14886736,3937.2,3937.1,0.002]
[1760671813599,29.80044217,3937.2,3937.1,0.002]
[1760671813786,35.62963617,3937.2,3937.1,0.002]
[1760671813986,34.24097717,3937.2,3937.1,0.002]
[1760671814405,34.29097717,3937.2,3937.1,0.002]
[1760671814585,39.04445203,3937.2,3937.1,0.002]
[1760671814787,39.04445203,3937.2,3936.9,0.002]
[1760671814788,2.54000508,3937.0,3936.9,0.002]
[1760671814977,34.26800508,3937.0,3936.9,0.002]
[1760671815178,34.71140508,3937.0,3936.9,0.002]
[1760671815500,35.11000891,3937.0,3936.9,0.002]
[1760671816522,22.87866191,3937.0,3936.9,0.002]
[1760671816691,22.30881242,3937.0,3936.9,0.002]
[1760671816875,23.68737242,3937.0,3936.9,0.002]
[1760671817075,10.23430759,3937.0,3936.9,0.002]
[1760671817681,10.63285745,3937.0,3936.9,0.002]
[1760671817885,20.24242545,3937.0,3936.9,0.002]
[1760671818089,11.77795537,3937.0,3936.9,0.002]
[1760671818409,7.03358137,3937.0,3936.9,0.002]
[1760671818585,7.15619337,3937.0,3936.9,0.002]
[1760671818910,5.08434651,3937.0,3936.9,0.002]
[1760671819073,10.49018751,3937.0,3936.9,0.002]
[1760671819478,13.03019259,3937.0,3936.9,0.002]
[1760671819675,2.563,3937.0,3936.9,0.002]
[1760671819890,2.563,3937.0,3936.9,0.4689]
[1760671820107,4.954283,3937.0,3936.9,0.4689]
[1760671820409,12.281088,3937.0,3936.9,0.002]
[1760671820577,6.018408,3937.0,3936.9,0.002]
[1760671820777,5.645283,3937.0,3936.9,0.002]
[1760671820973,11.74353,3937.0,3936.9,0.002]
[1760671821400,13.17197681,3937.0,3936.9,0.002]
[1760671821598,16.14988189,3937.0,3936.9,0.002]
[1760671821798,20.8014567,3937.0,3936.9,0.002]
[1760671822013,16.95284889,3937.0,3936.9,0.002]
[1760671822219,17.7892763,3937.0,3936.9,0.002]
[1760671823083,17.5413983,3937.0,3936.9,0.002]
[1760671824016,22.0259633,3937.0,3936.9,0.002]
[1760671824593,28.40553811,3937.0,3936.9,0.002]
[1760671824985,13.74745411,3937.0,3936.9,0.002]
[1760671825213,41.23941811,3937.0,3936.9,0.002]
[1760671825517,31.0501023,3937.0,3936.9,0.002]
[1760671825695,29.6447183,3937.0,3936.9,0.002]
[1760671826089,31.7214713,3937.0,3936.9,0.002]
[1760671826803,27.9297843,3937.0,3936.9,0.002]
[1760671827115,21.2763113,3937.0,3936.9,0.002]
[1760671827321,19.5431703,3937.0,3936.9,0.002]
[1760671827690,19.5441703,3937.0,3936.9,0.002]
[1760671827890,17.6277503,3937.0,3936.9,0.002]
[1760671828089,11.16683622,3937.0,3936.9,0.002]
[1760671828288,9.38443822,3937.0,3936.9,0.002]
[1760671828919,11.9244433,3937.0,3936.9,0.002]
[1760671829118,13.9711463,3937.0,3936.9,0.002]
[1760671829910,12.8636483,3937.0,3936.9,0.002]
[1760671830213,9.29120022,3937.0,3936.9,0.002]
[1760671830522,7.86275341,3937.0,3936.9,0.002]
[1760671830720,5.21994141,3937.0,3936.9,0.4541]
[1760671830935,2.96252741,3937.0,3936.9,0.4541]
[1760671831293,5.038099,3937.0,3936.9,0.4541]
[1760671831793,9.428293,3937.0,3936.9,0.002]
[1760671831997,10.70884265,3937.0,3936.9,0.002]
[1760671832435,2.564,3937.0,3936.9,0.4541]
[1760671832727,6.468665,3937.0,3936.9,0.4541]
[1760671832918,5.293052,3937.0,3936.9,0.4541]
[1760671833222,2.564,3937.0,3936.9,0.4541]
[1760671833740,6.293099,3937.0,3936.9,0.002]
[1760671833895,8.1416,3937.0,3936.9,0.002]
[1760671834087,2.564,3937.0,3936.9,0.4541]
[1760671834299,4.931203,3937.0,3936.9,0.4541]
[1760671834927,8.441827,3937.0,3936.9,0.4541]
[1760671835240,8.441827,3937.0,3936.9,0.002]
[1760671835241,18.86223036,3937.0,3936.9,0.002]
[1760671835448,8.18704051,3937.0,3936.9,0.002]
[1760671835745,9.16063351,3937.0,3936.9,0.002]
[1760671836039,6.383768,3937.0,3936.9,0.002]
[1760671836506,6.821668,3937.0,3936.9,0.002]
[1760671836925,16.876783,3937.0,3936.9,0.002]
[1760671837233,10.97251,3937.0,3936.9,0.002]
[1760671838022,15.833753,3937.0,3936.9,0.002]
[1760671838322,14.049929,3937.0,3936.9,0.002]
[1760671838717,15.96545543,3937.0,3936.9,0.002]
[1760671839023,16.47818543,3937.0,3936.9,0.002]
[1760671839525,11.08222243,3937.0,3936.9,0.002]
[1760671839726,10.27534243,3937.0,3936.9,0.002]
[1760671839924,9.89620943,3937.0,3936.9,0.002]
[1760671840125,9.70002243,3937.0,3936.9,0.002]
[1760671840295,8.70412743,3937.0,3936.9,0.002]
[1760671840495,6.14112743,3937.0,3936.9,0.002]
[1760671840722,2.564,3937.0,3936.9,0.4541]
[1760671841555,2.564,3937.0,3936.9,0.002]
[1760671842338,16.59691,3937.0,3936.9,0.002]
[1760671842555,10.818472,3937.0,3936.9,0.002]
[1760671843220,10.373798,3937.0,3936.9,0.002]
[1760671843421,13.18234501,3937.0,3936.9,0.002]
[1760671843619,15.72235009,3937.0,3936.9,0.002]
[1760671843813,13.62024501,3937.0,3936.9,0.002]
[1760671844018,13.18234501,3937.0,3936.9,0.002]
[1760671844442,3.64132801,3937.0,3936.9,0.002]
[1760671844643,13.44139301,3937.0,3936.9,0.002]
[1760671844959,6.31106401,3937.0,3936.9,0.002]
[1760671845458,11.15796601,3937.0,3936.9,0.002]
[1760671845622,9.56819701,3937.0,3936.9,0.002]
[1760671845960,8.96589201,3937.0,3936.9,0.002]
[1760671846424,12.22309101,3937.0,3936.9,0.002]
[1760671846623,10.94080901,3937.0,3936.9,0.002]
[1760671846830,10.02487301,3937.0,3936.9,0.002]
[1760671847351,10.46277301,3937.0,3936.9,0.002]
[1760671847575,17.76047309,3937.0,3936.9,0.002]
[1760671848549,19.80554009,3937.0,3936.9,0.002]
[1760671849280,21.53354009,3937.0,3936.9,0.002]
[1760671849464,35.01396009,3937.0,3936.9,0.002]
[1760671849665,34.60658309,3937.0,3936.9,0.002]
[1760671849835,24.27439709,3937.0,3936.9,0.002]
[1760671850566,24.72016009,3937.0,3936.9,0.002]
[1760671850777,24.48235109,3937.0,3936.9,0.002]
[1760671850966,24.58425503,3937.0,3936.9,0.002]
[1760671851380,24.48235109,3937.0,3936.9,0.002]
[1760671851688,32.45923209,3937.0,3936.9,0.002]
[1760671852476,8.34723309,3937.0,3936.9,0.002]
[1760671852783,29.04561309,3937.0,3936.9,0.002]
[1760671853664,31.03510309,3937.0,3936.9,0.002]
[1760671854781,33.26750796,3937.0,3936.9,0.002]
[1760671855545,8.74578096,3937.0,3936.9,0.002]
[1760671855753,26.81339096,3937.0,3936.9,0.002]
[1760671856147,16.18770488,3937.0,3936.9,0.002]
[1760671856452,9.29131988,3937.0,3936.9,0.002]
[1760671856661,13.33918987,3937.0,3936.9,0.4433]
[1760671856864,10.62651887,3937.0,3936.9,0.002]
[1760671857058,10.62651887,3937.0,3936.9,0.4433]
[1760671857257,8.89851887,3937.0,3936.9,0.4433]
[1760671857650,10.34694787,3937.0,3936.9,0.002]
[1760671858275,10.12888587,3937.0,3936.9,0.002]
[1760671858480,9.24331087,3937.0,3936.9,0.002]
[1760671858644,9.53330987,3937.0,3936.9,0.002]
[1760671858849,7.86711387,3937.0,3936.9,0.002]
[1760671859182,2.564,3937.0,3936.9,0.002]
[1760671859480,4.837357,3937.0,3936.9,0.4433]
[1760671859682,5.749421,3937.0,3936.9,0.4433]
[1760671859886,5.749421,3937.0,3936.9,0.002]
[1760671860182,5.749421,3937.0,3936.9,0.4716]
[1760671860349,5.269919,3937.0,3936.9,0.4716]
[1760671860951,5.269919,3937.0,3936.9,0.002]
[1760671861448,16.07814299,3937.0,3936.9,0.002]
[1760671861687,6.60095599,3937.0,3936.9,0.002]
[1760671861852,2.564,3937.0,3936.9,0.4716]
[1760671862051,4.969803,3937.0,3936.9,0.4716]
[1760671862282,6.984982,3937.0,3936.9,0.4716]
[1760671862781,6.984982,3937.0,3936.9,0.002]
[1760671862985,10.68208528,3937.0,3936.9,0.002]
[1760671863185,11.08058814,3937.0,3936.9,0.002]
[1760671863376,27.65528914,3937.0,3936.9,0.002]
[1760671863572,21.30041614,3937.0,3936.9,0.002]
[1760671863883,20.99809214,3937.0,3936.9,0.002]
[1760671864185,15.04271014,3937.0,3936.9,0.002]
[1760671864352,18.38432414,3937.0,3936.9,0.002]
[1760671864984,17.20026514,3937.0,3936.9,0.002]
[1760671865280,16.41644414,3937.0,3936.9,0.002]
[1760671865453,18.19057114,3937.0,3936.9,0.002]
[1760671866176,17.94667114,3937.0,3936.9,0.002]
[1760671866485,26.53230814,3937.0,3936.9,0.002]
[1760671867486,31.45327914,3937.0,3936.9,0.002]
[1760671868352,36.65960614,3937.0,3936.9,0.002]
[1760671868563,31.53806514,3937.0,3936.9,0.002]
[1760671869487,36.30284414,3937.0,3936.9,0.002]
[1760671869786,17.18679014,3937.0,3936.9,0.002]
[1760671869970,3.58095106,3937.0,3936.9,0.002]
[1760671870175,5.44535286,3937.0,3936.9,0.002]
[1760671870388,9.60036586,3937.0,3936.9,0.002]
[1760671870681,6.36301486,3937.0,3936.9,0.002]
[1760671870887,5.964512,3937.0,3936.9,0.002]
[1760671871275,8.50451708,3937.0,3936.9,0.002]
[1760671871479,18.77573979,3937.0,3936.9,0.002]
[1760671872185,16.23573471,3937.0,3936.9,0.002]
[1760671872384,3.41455171,3937.0,3936.9,0.002]
[1760671872594,6.93198871,3937.0,3936.9,0.002]
[1760671873487,3.41455171,3937.0,3936.9,0.002]
[1760671873700,2.564,3937.0,3936.9,0.4716]
[1760671873880,2.96250152,3937.0,3936.9,0.4716]
[1760671875396,13.75400152,3937.0,3936.9,0.002]
[1760671876368,15.09484852,3937.0,3936.9,0.002]
[1760671876567,11.38354752,3937.0,3936.9,0.002]
[1760671876763,8.45380752,3937.0,3936.9,0.002]
[1760671877497,11.49764752,3937.0,3936.9,0.002]
[1760671877877,13.10601227,3937.0,3936.9,0.002]
[1760671878276,10.63640027,3937.0,3936.9,0.002]
[1760671878500,9.11569227,3937.0,3936.9,0.002]
[1760671878871,7.29048427,3937.0,3936.9,0.002]
[1760671879085,6.89198275,3937.0,3936.9,0.002]
[1760671879580,22.53446983,3937.0,3936.9,0.002]
[1760671880088,20.49296883,3937.0,3936.9,0.002]
[1760671880495,22.51444583,3937.0,3936.9,0.002]
[1760671881507,31.82368083,3937.0,3936.9,0.002]
[1760671881707,29.68555083,3937.0,3936.9,0.002]
[1760671882405,28.66731083,3937.0,3936.9,0.002]
[1760671883070,29.51545583,3937.0,3936.9,0.002]
[1760671883266,29.9139994,3937.0,3936.9,0.002]
[1760671883499,38.1214934,3937.0,3936.9,0.002]
[1760671884588,38.8389134,3937.0,3936.9,0.002]
[1760671887502,43.49800754,3937.0,3936.9,0.002]
[1760671889996,44.64300754,3937.0,3936.9,0.002]
[1760671890494,40.93500754,3937.0,3936.9,0.002]
[1760671890694,44.64300754,3937.0,3936.9,0.002]
[1760671892009,51.11300754,3937.0,3936.9,0.002]
[1760671893608,21.11300754,3937.0,3936.9,0.002]
[1760671893804,51.11300754,3937.0,3936.9,0.002]
[1760671895181,50.71446397,3937.0,3936.9,0.002]
[1760671896913,51.11304562,3937.0,3936.9,0.002]
[1760671898598,21.11304562,3937.0,3936.9,0.002]
[1760671898796,51.11304562,3937.0,3936.9,0.002]
[1760671899710,21.11304562,3937.0,3936.9,0.002]
[1760671899916,50.71446397,3937.0,3936.9,0.002]
[1760671900414,57.71446397,3937.0,3936.9,0.002]
[1760671901215,57.25596397,3937.0,3936.9,0.002]
[1760671902205,57.71126397,3937.0,3936.9,0.002]
[1760671902898,58.10984504,3937.0,3936.9,0.002]
[1760671903926,42.17724704,3937.0,3936.9,0.002]
[1760671904125,42.17724704,3937.0,3936.9,0.4725]
[1760671904126,43.06580804,3937.0,3936.9,0.4725]
[1760671904818,54.87164504,3937.0,3936.9,0.002]